fUST/lending_fUST_20240418
["ID","MTS","AMOUNT","RATE_DAILY","PERIOD"]
[322843916,1713388713099,-1331.21,0.00035516,30]
[322843917,1713388713126,-500.0,0.00035516,30]
[322843918,1713388713152,-500.0,0.00035516,30]
[322843919,1713388713184,-582.73,0.00035516,30]
[322843920,1713388713211,-1331.21,0.00035516,30]
[322843921,1713388713240,-500.0,0.00035516,30]
[322843922,1713388713269,-500.0,0.00035516,30]
[322843923,1713388713295,-582.78030634,0.00035516,30]
[322843924,1713388713322,-500.0,0.00035516,30]
[322843925,1713388713349,-1331.21,0.00035516,30]
[322843926,1713388713375,-500.0,0.00035516,30]
[322843927,1713388713403,-500.0,0.00035516,30]
[322843928,1713388713436,-500.0,0.00035516,30]
[322843929,1713388713462,-1331.21,0.00035516,30]
[322843930,1713388713490,-500.0,0.00035516,30]
[322843931,1713388713517,-399.87,0.00035516,30]
[322843932,1713388713548,-500.0,0.00035516,30]
[322843933,1713388713575,-500.0,0.00035516,30]
[322843934,1713388713603,-500.0,0.00035516,30]
[322843935,1713388713630,-510.73408988,0.00035516,30]
[322843936,1713388713658,-1331.21,0.00035516,30]
[322843937,1713388713687,-500.0,0.00035516,30]
[322843938,1713388713714,-1331.21,0.00035516,30]
[322843939,1713388713740,-500.0,0.00035516,30]
[322843940,1713388713767,-500.0,0.00035516,30]
[322843941,1713388713799,-1331.21,0.00035516,30]
[322843942,1713388713827,-500.0,0.00035516,30]
[322843943,1713388713853,-1331.21,0.00035516,30]
[322843944,1713388713880,-500.0,0.00035516,30]
[322843945,1713388713908,-500.0,0.00035516,30]
[322843946,1713388713938,-1331.40477752,0.00035516,30]
[322843947,1713388713966,-500.0,0.00035516,30]
[322843948,1713388713993,-502.2176413,0.00035516,30]
[322843949,1713388714099,-500.0,0.00035516,30]
[322843950,1713388714126,-500.0,0.00035516,30]
[322843951,1713388714153,-500.0,0.00035516,30]
[322843952,1713388714188,-500.0,0.00035516,30]
[322843953,1713388714216,-500.0,0.00035516,30]
[322843954,1713388714245,-500.0,0.00035516,30]
[322843955,1713388714273,-20833.25,0.00035516,30]
[322843956,1713388714301,-500.0,0.00035516,30]
[322843957,1713388714332,-500.0,0.00035516,30]
[322843958,1713388714359,-500.0,0.00035516,30]
[322843959,1713388714386,-500.0,0.00035516,30]
[322843960,1713388714418,-20833.25,0.00035516,30]
[322843961,1713388714447,-500.0,0.00035516,30]
[322843962,1713388714476,-500.0,0.00035516,30]
[322843963,1713388714509,-500.0,0.00035516,30]
[322843964,1713388714538,-500.0,0.00035516,30]
[322843965,1713388714567,-20833.25,0.00035516,30]
[322843966,1713388714594,-348.71250034,0.00035516,30]
[322843967,1713388714621,-500.0,0.00035516,30]
[322843968,1713388714648,-326.6,0.00035516,30]
[322843969,1713388714676,-20833.25,0.00035516,30]
[322843970,1713388714703,-500.0,0.00035516,30]
[322843971,1713388714730,-500.0,0.00035516,30]
[322843972,1713388714757,-20833.25,0.00035516,30]
[322843973,1713388714784,-500.0,0.00035516,30]
[322843974,1713388714811,-500.0,0.00035516,30]
[322843975,1713388714839,-20833.25,0.00035516,30]
[322843976,1713388714867,-500.0,0.00035516,30]
[322843977,1713388714894,-500.0,0.00035516,30]
[322843978,1713388714924,-501.73513745,0.00035516,30]
[322843979,1713388714951,-500.0,0.00035516,30]
[322843980,1713388714979,-20833.25,0.00035516,30]
[322843981,1713388715006,-500.0,0.00035516,30]
[322843982,1713388715035,-500.0,0.00035516,30]
[322843983,1713388715062,-20833.25,0.00035516,30]
[322843984,1713388715090,-572.14929478,0.00035516,30]
[322843985,1713388715118,-500.0,0.00035516,30]
[322843986,1713388715146,-225.04,0.00035516,30]
[322843987,1713388715176,-20833.25,0.00035516,30]
[322843988,1713388715203,-500.0,0.00035516,30]
[322843989,1713388715232,-20833.25,0.00035516,30]
[322843990,1713388715259,-20833.25,0.00035516,30]
[322843991,1713388715288,-500.0,0.00035516,30]
[322843992,1713388715316,-20833.25,0.00035516,30]
[322843993,1713388715343,-20833.25,0.00035516,30]
[322843994,1713388715372,-20833.25,0.00035516,30]
[322843995,1713388715400,-20833.25,0.00035516,30]
[322843996,1713388715430,-495.3045105,0.00035516,30]
[322843997,1713388715458,-20833.25,0.00035516,30]
[322843998,1713388715485,-391.67762487,0.00035516,30]
[322843999,1713388715512,-500.0,0.00035516,30]
[322844000,1713388715540,-20833.25,0.00035516,30]
[322844001,1713388715567,-509.03740125,0.00035516,30]
[322844002,1713388715595,-20833.25,0.00035516,30]
[322844003,1713388715624,-20833.25,0.00035516,30]
[322844004,1713388715651,-20833.25,0.00035516,30]
[322844005,1713388715681,-884.31,0.00035516,30]
[322844006,1713388715710,-500.0,0.00035516,30]
[322844007,1713388715738,-20833.25,0.00035516,30]
[322844008,1713388715849,-884.31,0.00035516,30]
[322844009,1713388715880,-500.0,0.00035516,30]
[322844010,1713388715911,-20833.25,0.00035516,30]
[322844011,1713388715939,-884.31,0.00035516,30]
[322844012,1713388715967,-500.0,0.00035516,30]
[322844013,1713388715996,-2507.60043056,0.00035516,30]
[322844014,1713388716603,3378.95802152,0.00049,120]
[322844015,1713388716636,156.80009659,0.00033998,10]
[322844047,1713389432586,-332.07459253,0.00027388,2]
[322844049,1713389432595,-277.60171443,0.00027389,2]
[322844051,1713389432604,-281.541477,0.00027397,2]
[322844053,1713389432614,-248.17302,0.00027397,2]
[322844054,1713389432622,-184.233026,0.00027397,2]
[322844055,1713389432631,-657.78300908,0.00028355,2]
[322844057,1713389432640,-55.4615761,0.00029999,2]
[322844059,1713389432652,-199.44686359,0.00029999,2]
[322844061,1713389432661,-300.0,0.00029999,2]
[322844062,1713389432670,-300.0,0.00029999,2]
[322844063,1713389432680,-102.98813636,0.0003,2]
[322844207,1713389440680,-12610.3647257,0.0003,2]
[322844209,1713389440690,-154.82968734,0.0003062,2]
[322844210,1713389440699,-166.666666,0.00030722,2]
[322844212,1713389440708,-320.4553623,0.000308,10]
[322844213,1713389440717,-1000.0,0.00030984,2]
[322844214,1713389440726,-844.7745796,0.00031423,2]
[322844215,1713389440735,-311.233301,0.00031511,2]
[322844216,1713389440744,-166.666666,0.0003156,2]
[322844217,1713389440753,-166.216605,0.00031887,2]
[322844218,1713389440763,-278.0,0.00032,2]
[322844219,1713389440772,-5000.0,0.00032,2]
[322844220,1713389440781,-191.18536531,0.0003223,4]
[322844221,1713389440790,-1191.5814827,0.00032231,5]
[322844222,1713389440799,-420.0,0.00032332,2]
[322844223,1713389440808,-166.666666,0.00032398,2]
[322844224,1713389440817,-420.0,0.00032999,2]
[322844225,1713389440826,-436.37162949,0.00033,4]
[322844226,1713389440835,-281.541477,0.00033165,2]
[322844227,1713389440844,-248.17302,0.00033165,2]
[322844228,1713389440853,-184.233026,0.00033165,2]
[322844229,1713389440862,-166.666666,0.00033235,2]
[322844230,1713389440871,-417.0,0.00033238,2]
[322844231,1713389440880,-2000.0,0.00033899,2]
[322844232,1713389440889,-202.34415029,0.00033988,2]
[322844233,1713389440898,-4848.21770199,0.00033998,5]
[322844235,1713389440907,-1014.98909932,0.00033998,4]
[322844237,1713389440916,-13573.22935182,0.00033998,7]
[322844239,1713389440926,-186.33526522,0.00033998,2]
[322844241,1713389440936,-4114.8754052,0.00033998,2]
[322844242,1713389440944,-185.06798079,0.00033999,4]
[322844243,1713389440954,-959.89183635,0.00033999,4]
[322844244,1713389440965,-465.62426375,0.00034,4]
[322844245,1713389440974,-166.666666,0.00034073,2]
[322844246,1713389440983,-153.0,0.00034643,2]
[322844247,1713389440994,-153.0,0.00034643,2]
[322844248,1713389441003,-153.0,0.00034643,2]
[322844250,1713389441014,-153.0,0.00034643,2]
[322844251,1713389441023,-587.0,0.00034847,2]
[322844253,1713389441032,-166.666666,0.0003491,2]
[322844266,1713389441152,-278.0,0.00035,2]
[322844268,1713389441162,-154.82968734,0.00035,4]
[322844270,1713389441171,-597.24868455,0.00035,2]
[322844272,1713389441180,-203.2761986,0.00035136,2]
[322844274,1713389441189,-203.2761986,0.00035136,2]
[322844276,1713389441198,-203.2761986,0.00035136,2]
[322844278,1713389441207,-203.2761986,0.00035136,2]
[322844279,1713389441215,-203.2761986,0.00035136,2]
[322844281,1713389441224,-203.2761986,0.00035136,2]
[322844283,1713389441234,-203.2761986,0.00035136,2]
[322844285,1713389441243,-203.2761986,0.00035136,2]
[322844287,1713389441252,-150.62278984,0.00035136,2]
[322844293,1713389441288,-52.65340876,0.00035136,2]
[322844295,1713389441298,-203.2761986,0.00035136,2]
[322844297,1713389441307,-203.2761986,0.00035136,2]
[322844299,1713389441315,-203.2761986,0.00035136,2]
[322844301,1713389441325,-203.2761986,0.00035136,2]
[322844303,1713389441333,-203.2761986,0.00035136,2]
[322844304,1713389441342,-203.2761986,0.00035136,2]
[322844307,1713389441352,-203.2761986,0.00035136,2]
[322844308,1713389441363,-203.2761986,0.00035136,2]
[322844311,1713389441372,-203.2761986,0.00035136,2]
[322844313,1713389441382,-203.2761986,0.00035136,2]
[322844314,1713389441392,-203.2761986,0.00035136,2]
[322844317,1713389441401,-203.2761986,0.00035136,2]
[322844318,1713389441412,-203.2761986,0.00035136,2]
[322844320,1713389441422,-203.2761986,0.00035136,2]
[322844322,1713389441433,-306.0,0.0003519,2]
[322844325,1713389441446,-158.99062784,0.00035242,3]
[322844327,1713389441459,-165.87332109,0.00035416,2]
[322844329,1713389441468,-203.2761986,0.00035464,2]
[322844331,1713389441477,-203.2761986,0.00035464,2]
[322844333,1713389441486,-203.2761986,0.00035464,2]
[322844335,1713389441495,-213.715522,0.00035465,2]
[322844337,1713389441504,-151.32,0.00035486,35]
[322844339,1713389441516,-150.5,0.00035496,35]
[322844341,1713389441525,-213.75,0.00035496,35]
[322844343,1713389441535,-175.32,0.00035506,35]
[322844345,1713389441545,-150.5,0.00035506,35]
[322844347,1713389441553,-150.5,0.00035506,35]
[322844349,1713389441562,-214.86,0.00035506,35]
[322844351,1713389441571,-604.62174411,0.00035512,2]
[322844475,1713389447216,-203.2761986,0.00035464,2]
[322844476,1713389447225,-165.87332108,0.00035512,2]
[322844477,1713389447235,-446.16547941,0.00035513,4]
[322844478,1713389447245,-803.65147083,0.00035514,35]
[322844479,1713389447254,-96175.9146694,0.00035515,4]
[322844480,1713389447266,-1000.0,0.00035516,3]
[322844481,1713389447275,-366.0,0.00035582,35]
[322844482,1713389447284,-150.5,0.00035582,35]
[322844483,1713389447294,-187.79272959,0.00035589,4]
[322844484,1713389447303,-215.57102919,0.00035589,4]
[322844485,1713389447311,-257.62252103,0.00035589,4]
[322844486,1713389447321,-856.95690011,0.00035589,4]
[322844487,1713389447330,-6104.6843263,0.0003559,4]
[322844488,1713389447339,-156.98200501,0.00035591,4]
[322844489,1713389447349,-608.9706492,0.00035591,2]
[322844490,1713389447358,-651.05869263,0.00035591,4]
[322844491,1713389447367,-376.89055884,0.00035591,4]
[322844492,1713389447376,-601.81614276,0.00035591,4]
[322844494,1713389447385,-161.77699218,0.00035591,4]
[322844495,1713389447394,-1212.72837645,0.00035591,4]
[322844497,1713389447404,-537.61995253,0.00035591,4]
[322844499,1713389447413,-19287.45836398,0.00035592,4]
[322844500,1713389447422,-366.0,0.00035592,35]
[322844501,1713389447431,-150.5,0.00035592,35]
[322844502,1713389447444,-366.0,0.00035602,35]
[322844503,1713389447453,-150.5,0.00035602,35]
[322844504,1713389447462,-359.3648322,0.00035611,7]
[322844505,1713389447470,-154.01349951,0.00035611,7]
[322844506,1713389447480,-42161.39111531,0.00035612,5]
[322844507,1713389447489,-270.292435,0.00035612,2]
[322844508,1713389447498,-270.292435,0.00035612,2]
[322844509,1713389447507,-270.292435,0.00035612,2]
[322844510,1713389447519,-270.292435,0.00035612,2]
[322844511,1713389447528,-270.292435,0.00035612,2]
[322844512,1713389447538,-270.292435,0.00035612,2]
[322844513,1713389447546,-270.292435,0.00035612,2]
[322844514,1713389447556,-270.292435,0.00035612,2]
[322844515,1713389447566,-500.0,0.00035612,30]
[322844516,1713389447575,-500.0,0.00035612,30]
[322844517,1713389447586,-500.0,0.00035612,30]
[322844518,1713389447596,-500.0,0.00035612,30]
[322844519,1713389447605,-500.0,0.00035612,30]
[322844520,1713389447615,-500.0,0.00035612,30]
[322844521,1713389447624,-500.0,0.00035612,30]
[322844522,1713389447634,-305.03144355,0.00035612,30]
[322844523,1713389447643,-500.0,0.00035612,30]
[322844524,1713389447653,-500.0,0.00035612,30]
[322844525,1713389447663,-500.0,0.00035612,30]
[322844526,1713389447672,-500.0,0.00035612,30]
[322844527,1713389447683,-161.18267548,0.00035612,30]
[322844528,1713389447692,-500.0,0.00035612,30]
[322844529,1713389447701,-500.0,0.00035612,30]
[322844530,1713389447710,-500.0,0.00035612,30]
[322844531,1713389447719,-500.0,0.00035612,30]
[322844532,1713389447729,-256.39992614,0.00035612,30]
[322844533,1713389447739,-500.0,0.00035612,30]
[322844534,1713389447748,-500.0,0.00035612,30]
[322844535,1713389447758,-500.0,0.00035612,30]
[322844536,1713389447768,-500.0,0.00035612,30]
[322844537,1713389447778,-500.0,0.00035612,30]
[322844538,1713389447787,-500.0,0.00035612,30]
[322844539,1713389447796,-500.0,0.00035612,30]
[322844540,1713389447806,-500.0,0.00035612,30]
[322844541,1713389447815,-500.0,0.00035612,30]
[322844542,1713389447824,-500.0,0.00035612,30]
[322844543,1713389447833,-500.0,0.00035612,30]
[322844544,1713389447842,-500.0,0.00035612,30]
[322844545,1713389447851,-500.0,0.00035612,30]
[322844546,1713389447860,-500.0,0.00035612,30]
[322844547,1713389447869,-500.0,0.00035612,30]
[322844548,1713389447879,-500.0,0.00035612,30]
[322844549,1713389447888,-500.0,0.00035612,30]
[322844550,1713389447897,-500.0,0.00035612,30]
[322844551,1713389447907,-500.0,0.00035612,30]
[322844552,1713389447917,-500.0,0.00035612,30]
[322844553,1713389447927,-500.0,0.00035612,30]
[322844554,1713389447936,-500.0,0.00035612,30]
[322844555,1713389447945,-500.0,0.00035612,30]
[322844556,1713389447954,-500.0,0.00035612,30]
[322844557,1713389447964,-500.0,0.00035612,30]
[322844558,1713389447973,-500.0,0.00035612,30]
[322844559,1713389447982,-538.93,0.00035612,30]
[322844560,1713389447991,-500.0,0.00035612,30]
[322844561,1713389448000,-500.0,0.00035612,30]
[322844562,1713389448009,-500.0,0.00035612,30]
[322844563,1713389448020,-500.0,0.00035612,30]
[322844564,1713389448029,-500.0,0.00035612,30]
[322844565,1713389448038,-538.93,0.00035612,30]
[322844566,1713389448047,-500.0,0.00035612,30]
[322844567,1713389448056,-538.93,0.00035612,30]
[322844568,1713389448065,-164.00977262,0.00035612,30]
[322844569,1713389448074,-500.0,0.00035612,30]
[322844570,1713389448083,-538.93,0.00035612,30]
[322844571,1713389448092,-500.0,0.00035612,30]
[322844572,1713389448101,-538.93,0.00035612,30]
[322844573,1713389448111,-418.86148863,0.00035612,30]
[322844574,1713389448120,-538.93,0.00035612,30]
[322844575,1713389448128,-538.93,0.00035612,30]
[322844576,1713389448137,-538.93,0.00035612,30]
[322844577,1713389448146,-538.93,0.00035612,30]
[322844578,1713389448155,-538.93,0.00035612,30]
[322844579,1713389448164,-538.93,0.00035612,30]
[322844580,1713389448173,-538.93,0.00035612,30]
[322844581,1713389448182,-538.93,0.00035612,30]
[322844582,1713389448191,-538.93,0.00035612,30]
[322844583,1713389448200,-538.93,0.00035612,30]
[322844584,1713389448209,-538.93,0.00035612,30]
[322844585,1713389448218,-538.93,0.00035612,30]
[322844586,1713389448227,-500.0,0.00035612,30]
[322844587,1713389448236,-538.93,0.00035612,30]
[322844588,1713389448244,-538.93,0.00035612,30]
[322844589,1713389448253,-538.93,0.00035612,30]
[322844590,1713389448263,-538.93,0.00035612,30]
[322844591,1713389448273,-538.93,0.00035612,30]
[322844592,1713389448282,-538.93,0.00035612,30]
[322844593,1713389448292,-538.94,0.00035612,30]
[322844594,1713389448301,-591.68613593,0.00035612,30]
[322844595,1713389448310,-500.0,0.00035612,30]
[322844596,1713389448319,-500.0,0.00035612,30]
[322844597,1713389448328,-431.98711444,0.00035612,30]
[322844598,1713389448337,-500.0,0.00035612,30]
[322844599,1713389448346,-496.77575451,0.00035612,30]
[322844600,1713389448355,-500.0,0.00035612,30]
[322844601,1713389448365,-500.0,0.00035612,30]
[322844602,1713389448374,-500.0,0.00035612,30]
[322844603,1713389448383,-500.0,0.00035612,30]
[322844604,1713389448393,-500.0,0.00035612,30]
[322844605,1713389448402,-500.0,0.00035612,30]
[322844606,1713389448412,-515.46839036,0.00035612,30]
[322844607,1713389448421,-649.68040835,0.00035612,30]
[322844608,1713389448430,-223.95108632,0.00035612,30]
[322844609,1713389448439,-500.0,0.00035612,30]
[322844610,1713389448449,-500.0,0.00035612,30]
[322844611,1713389448460,-267.09480051,0.00035612,30]
[322844612,1713389448469,-500.0,0.00035612,30]
[322844613,1713389448478,-500.0,0.00035612,30]
[322844614,1713389448487,-500.0,0.00035612,30]
[322844615,1713389448498,-500.0,0.00035612,30]
[322844616,1713389448507,-500.0,0.00035612,30]
[322844617,1713389448517,-500.0,0.00035612,30]
[322844618,1713389448526,-500.0,0.00035612,30]
[322844619,1713389448538,-486.71904254,0.00035612,30]
[322844620,1713389448549,-362.5167433,0.00035612,30]
[322844621,1713389448560,-165.56037737,0.00035612,30]
[322844622,1713389448569,-500.0,0.00035612,30]
[322844623,1713389448578,-500.0,0.00035612,30]
[322844624,1713389448588,-800.51327954,0.00035612,120]
[322844625,1713389448597,-1119.64,0.00035612,30]
[322844626,1713389448606,-1119.64,0.00035612,30]
[322844627,1713389448615,-1119.64,0.00035612,30]
[322844628,1713389448623,-1119.64,0.00035612,30]
[322844629,1713389448633,-1119.64,0.00035612,30]
[322844630,1713389448642,-1119.64,0.00035612,30]
[322844631,1713389448652,-1119.64,0.00035612,30]
[322844632,1713389448661,-1119.64,0.00035612,30]
[322844633,1713389448670,-1119.64,0.00035612,30]
[322844634,1713389448679,-1119.64,0.00035612,30]
[322844635,1713389448689,-1119.64,0.00035612,30]
[322844636,1713389448698,-1119.64,0.00035612,30]
[322844637,1713389448707,-1119.64,0.00035612,30]
[322844638,1713389448716,-1119.64,0.00035612,30]
[322844639,1713389448726,-1119.64,0.00035612,30]
[322844640,1713389448735,-1119.64,0.00035612,30]
[322844641,1713389448745,-1119.64,0.00035612,30]
[322844642,1713389448754,-1119.64,0.00035612,30]
[322844643,1713389448765,-1119.64,0.00035612,30]
[322844644,1713389448774,-1119.64,0.00035612,30]
[322844645,1713389448783,-1119.64,0.00035612,30]
[322844646,1713389448791,-1119.64,0.00035612,30]
[322844647,1713389448801,-1119.64,0.00035612,30]
[322844648,1713389448810,-1119.70697291,0.00035612,30]
[322844649,1713389448819,-500.0,0.00035612,30]
[322844650,1713389448828,-500.0,0.00035612,30]
[322844651,1713389448837,-500.0,0.00035612,30]
[322844652,1713389448847,-500.0,0.00035612,30]
[322844653,1713389448856,-500.0,0.00035612,30]
[322844654,1713389448865,-500.0,0.00035612,30]
[322844655,1713389448874,-500.0,0.00035612,30]
[322844656,1713389448884,-500.0,0.00035612,30]
[322844657,1713389448893,-167.75343661,0.00035612,30]
[322844658,1713389448903,-602.99,0.00035612,30]
[322844659,1713389448913,-602.99,0.00035612,30]
[322844660,1713389448922,-602.99,0.00035612,30]
[322844661,1713389448931,-602.99,0.00035612,30]
[322844662,1713389448941,-602.99,0.00035612,30]
[322844663,1713389448951,-602.99,0.00035612,30]
[322844664,1713389448960,-602.99,0.00035612,30]
[322844665,1713389448969,-602.99,0.00035612,30]
[322844666,1713389448978,-602.99,0.00035612,30]
[322844667,1713389448988,-602.99,0.00035612,30]
[322844668,1713389448997,-602.99,0.00035612,30]
[322844669,1713389449006,-602.99,0.00035612,30]
[322844670,1713389449016,-602.99,0.00035612,30]
[322844671,1713389449025,-602.99,0.00035612,30]
[322844672,1713389449034,-602.99,0.00035612,30]
[322844673,1713389449043,-602.99,0.00035612,30]
[322844674,1713389449053,-602.99,0.00035612,30]
[322844675,1713389449062,-602.99,0.00035612,30]
[322844676,1713389449072,-602.99,0.00035612,30]
[322844677,1713389449081,-602.99,0.00035612,30]
[322844678,1713389449090,-602.99,0.00035612,30]
[322844679,1713389449099,-602.99,0.00035612,30]
[322844680,1713389449111,-602.99,0.00035612,30]
[322844681,1713389449120,-603.1795244,0.00035612,30]
[322844682,1713389449222,-500.0,0.00035612,30]
[322844683,1713389449232,-500.0,0.00035612,30]
[322844684,1713389449241,-500.0,0.00035612,30]
[322844685,1713389449250,-500.0,0.00035612,30]
[322844686,1713389449259,-500.0,0.00035612,30]
[322844687,1713389449271,-709.86,0.00035612,30]
[322844688,1713389449281,-473.11800527,0.00035612,30]
[322844689,1713389449292,-709.86,0.00035612,30]
[322844690,1713389449301,-709.86,0.00035612,30]
[322844691,1713389449310,-709.86,0.00035612,30]
[322844692,1713389449320,-709.86,0.00035612,30]
[322844693,1713389449330,-709.86,0.00035612,30]
[322844694,1713389449339,-709.86,0.00035612,30]
[322844695,1713389449349,-709.86,0.00035612,30]
[322844696,1713389449358,-709.86,0.00035612,30]
[322844697,1713389449368,-709.86,0.00035612,30]
[322844698,1713389449378,-709.86,0.00035612,30]
[322844699,1713389449387,-709.86,0.00035612,30]
[322844700,1713389449396,-709.86,0.00035612,30]
[322844701,1713389449405,-709.86,0.00035612,30]
[322844702,1713389449414,-709.86,0.00035612,30]
[322844703,1713389449424,-709.86,0.00035612,30]
[322844704,1713389449433,-709.86,0.00035612,30]
[322844705,1713389449442,-709.86,0.00035612,30]
[322844706,1713389449456,-709.86,0.00035612,30]
[322844707,1713389449465,-709.86,0.00035612,30]
[322844708,1713389449475,-709.86,0.00035612,30]
[322844709,1713389449484,-709.86,0.00035612,30]
[322844710,1713389449495,-709.86,0.00035612,30]
[322844711,1713389449504,-709.99570969,0.00035612,30]
[322844712,1713389449515,-500.0,0.00035612,30]
[322844713,1713389449525,-500.0,0.00035612,30]
[322844714,1713389449535,-500.0,0.00035612,30]
[322844715,1713389449545,-500.0,0.00035612,30]
[322844716,1713389449556,-500.0,0.00035612,30]
[322844717,1713389449565,-921.19,0.00035612,30]
[322844718,1713389449575,-500.0,0.00035612,30]
[322844719,1713389449584,-921.19,0.00035612,30]
[322844720,1713389449593,-500.0,0.00035612,30]
[322844721,1713389449602,-921.19,0.00035612,30]
[322844722,1713389449612,-500.0,0.00035612,30]
[322844723,1713389449621,-921.19,0.00035612,30]
[322844724,1713389449630,-500.0,0.00035612,30]
[322844725,1713389449640,-921.19,0.00035612,30]
[322844726,1713389449649,-500.0,0.00035612,30]
[322844727,1713389449659,-921.19,0.00035612,30]
[322844728,1713389449668,-500.0,0.00035612,30]
[322844729,1713389449678,-500.0,0.00035612,30]
[322844730,1713389449688,-921.19,0.00035612,30]
[322844731,1713389449697,-500.0,0.00035612,30]
[322844732,1713389449707,-921.19,0.00035612,30]
[322844733,1713389449716,-500.0,0.00035612,30]
[322844734,1713389449725,-921.19,0.00035612,30]
[322844735,1713389449735,-500.0,0.00035612,30]
[322844736,1713389449745,-921.19,0.00035612,30]
[322844737,1713389449754,-921.19,0.00035612,30]
[322844738,1713389449763,-500.0,0.00035612,30]
[322844739,1713389449774,-456.28216454,0.00035612,30]
[322844740,1713389449783,-921.19,0.00035612,30]
[322844741,1713389449793,-921.19,0.00035612,30]
[322844742,1713389449802,-921.19,0.00035612,30]
[322844743,1713389449811,-921.19,0.00035612,30]
[322844744,1713389449820,-921.19,0.00035612,30]
[322844745,1713389449829,-921.19,0.00035612,30]
[322844746,1713389449839,-500.0,0.00035612,30]
[322844747,1713389449848,-500.0,0.00035612,30]
[322844748,1713389449857,-921.19,0.00035612,30]
[322844749,1713389449866,-500.0,0.00035612,30]
[322844750,1713389449876,-921.19,0.00035612,30]
[322844751,1713389449885,-500.0,0.00035612,30]
[322844752,1713389449894,-500.0,0.00035612,30]
[322844753,1713389449904,-921.19,0.00035612,30]
[322844754,1713389449913,-500.0,0.00035612,30]
[322844755,1713389449922,-921.19,0.00035612,30]
[322844756,1713389449931,-500.0,0.00035612,30]
[322844757,1713389449940,-500.0,0.00035612,30]
[322844758,1713389449949,-921.19,0.00035612,30]
[322844759,1713389449959,-500.0,0.00035612,30]
[322844760,1713389449968,-500.0,0.00035612,30]
[322844761,1713389449977,-921.19,0.00035612,30]
[322844762,1713389449986,-500.0,0.00035612,30]
[322844763,1713389449995,-921.37181064,0.00035612,30]
[322844764,1713389450004,-500.0,0.00035612,30]
[322844765,1713389450015,-500.0,0.00035612,30]
[322844766,1713389450024,-153.20899636,0.00035612,14]
[322844767,1713389450033,-500.0,0.00035612,30]
[322844768,1713389450043,-458.74157647,0.00035612,30]
[322844769,1713389450053,-153.20899636,0.00035612,14]
[322844770,1713389450062,-153.20899636,0.00035612,14]
[322844771,1713389450071,-337.64803263,0.00035612,30]
[322844814,1713390632388,-487.98960224,0.00027348,2]
[322845281,1713392415473,-563.87316233,0.00019927,2]
[322845282,1713392415495,-563.87316233,0.00019928,2]
[322845283,1713392415506,-295.25367534,0.00019928,2]
[322845284,1713392448702,-522.68849732,0.00019927,2]
[322845285,1713392448720,-522.68849732,0.00019927,2]
[322845286,1713392448739,-136.75001057,0.00019927,2]
[322845287,1713392448750,-106.26656121,0.00019928,2]
[322845334,1713393043420,-522.68849732,0.00018148,2]
[322845335,1713393043432,-672.6914059,0.00018149,2]
[322845336,1713393043442,-311.233302,0.00018156,2]
[322845337,1713393043451,-1042.63379738,0.000188,2]
[322845338,1713393043461,-300.0,0.00018898,2]
[322845339,1713393043470,-300.0,0.00018898,2]